fUSD/lending_fUSD_20250818
["ID","MTS","AMOUNT","RATE_DAILY","PERIOD"]
[380033330,1755490242284,-500.0,0.00010603,2]
[380033331,1755490242295,-500.0,0.00010603,2]
[380033333,1755490242304,-500.0,0.00010603,2]
[380033334,1755490242313,-150.0,0.00010603,2]
[380033335,1755490242323,-500.0,0.00010603,2]
[380033336,1755490242334,-514.65111795,0.00010603,2]
[380033337,1755490242344,-150.0,0.00010603,2]
[380033338,1755490242355,-500.0,0.00010603,2]
[380033339,1755490242365,-500.0,0.00010603,2]
[380033340,1755490242375,-500.0,0.00010603,2]
[380033341,1755490242384,-500.0,0.00010603,2]
[380033342,1755490242394,-500.0,0.00010603,2]
[380033343,1755490242404,-617.0,0.00010603,2]
[380033344,1755490242413,-500.0,0.00010603,2]
[380033345,1755490242423,-491.0,0.00010603,2]
[380033346,1755490242433,-3948.0,0.00010603,2]
[380033347,1755490242443,-500.0,0.00010603,2]
[380033348,1755490242452,-1854.0,0.00010603,2]
[380033349,1755490242461,-500.0,0.00010603,2]
[380033350,1755490242471,-500.0,0.00010603,2]
[380033351,1755490242480,-150.0,0.00010603,2]
[380033352,1755490242489,-515.42551482,0.00010603,2]
[380033353,1755490242499,-1145.0,0.00010603,2]
[380033354,1755490242510,-500.0,0.00010605,2]
[380033355,1755490242519,-500.0,0.0001066,2]
[380033356,1755490242529,-495687.2012514,0.00010695,2]
[380033357,1755490242539,-1085.0,0.00010697,2]
[380033358,1755490242548,-10500.0,0.000107,3]
[380033359,1755490242559,-500.0,0.00010715,2]
[380033360,1755490242569,-214.91943697,0.0001072,2]
[380033361,1755490242578,-16752.92836816,0.00010776,2]
[380033362,1755490242588,-10809.82480995,0.0001078,2]
[380033363,1755490242598,-2100.0,0.000108,3]
[380033364,1755490242607,-151.0,0.00010875,2]
[380033365,1755490242616,-500.0,0.00010877,2]
[380033366,1755490242626,-500.0,0.00010877,2]
[380033367,1755490242635,-150.0,0.00010877,2]
[380033368,1755490242645,-150.0,0.00010877,2]
[380033369,1755490242660,-500.0,0.00010877,2]
[380033370,1755490242671,-500.0,0.00010877,2]
[380033371,1755490242680,-500.0,0.00010877,2]
[380033372,1755490242690,-500.0,0.00010877,2]
[380033373,1755490242701,-500.0,0.00010877,2]
[380033374,1755490242712,-500.0,0.00010877,2]
[380033375,1755490242721,-180.59180096,0.00010877,2]
[380033376,1755490242731,-500.0,0.00010877,2]
[380033377,1755490242741,-500.0,0.00010877,2]
[380033378,1755490242751,-500.0,0.00010877,2]
[380033379,1755490242761,-150.0,0.00010877,2]
[380033380,1755490242770,-500.0,0.00010877,2]
[380033381,1755490242780,-153.58505331,0.00010877,2]
[380033382,1755490242790,-500.0,0.00010877,2]
[380033383,1755490242799,-500.0,0.00010877,2]
[380033384,1755490242808,-500.0,0.00010877,2]
[380033386,1755490242818,-500.0,0.00010877,2]
[380033387,1755490242828,-500.0,0.00010877,2]
[380033388,1755490242837,-617.0,0.00010877,2]
[380033389,1755490242847,-500.0,0.00010877,2]
[380033390,1755490242858,-491.0,0.00010877,2]
[380033391,1755490242867,-3948.0,0.00010877,2]
[380033392,1755490242878,-500.0,0.00010877,2]
[380033393,1755490242888,-1854.0,0.00010877,2]
[380033394,1755490242897,-500.0,0.00010877,2]
[380033395,1755490242907,-500.0,0.00010877,2]
[380033396,1755490242915,-200.0,0.00010877,2]
[380033397,1755490242924,-1145.0,0.00010877,2]
[380033398,1755490242933,-6237.35833,0.0001089,2]
[380033399,1755490242942,-194.58055401,0.00010899,3]
[380033400,1755490242952,-2500.0,0.000109,2]
[380033401,1755490242961,-2500.0,0.000109,2]
[380033402,1755490242970,-1251.40943873,0.000109,2]
[380033403,1755490242980,-348512.20928576,0.000109,2]
[380033404,1755490242989,-158.9275202,0.000109,2]
[380033405,1755490242998,-6654.4074,0.000109,2]
[380033406,1755490243008,-7119.22242042,0.000109,2]
[380033407,1755490243017,-2100.0,0.000109,3]
[380033408,1755490243026,-424.81040338,0.000109,2]
[380033409,1755490243036,-424.81040338,0.000109,2]
[380033410,1755490243045,-424.81040338,0.000109,2]
[380033411,1755490243055,-424.81040338,0.000109,2]
[380033412,1755490243065,-424.81040338,0.000109,2]
[380033413,1755490243075,-424.81040338,0.000109,2]
[380033414,1755490243084,-424.81040338,0.000109,2]
[380033415,1755490243093,-4039.39573084,0.000109,2]
[380033416,1755490243103,-424.81040338,0.000109,2]
[380033417,1755490243112,-151.0,0.000109,2]
[380033418,1755490243122,-2700.0,0.00010908,2]
[380033419,1755490243131,-1000.0,0.00010945,2]
[380033420,1755490243140,-1000.0,0.00010945,2]
[380033421,1755490243149,-1000.0,0.00010945,2]
[380033422,1755490243158,-1000.0,0.00010945,2]
[380033423,1755490243168,-1000.0,0.00010945,2]
[380033424,1755490243177,-1000.0,0.00010945,2]
[380033425,1755490243186,-1000.0,0.00010945,2]
[380033426,1755490243196,-1000.0,0.00010945,2]
[380033427,1755490243205,-1000.0,0.00010945,2]
[380033428,1755490243219,-1000.0,0.00010945,2]
[380033429,1755490243229,-1000.0,0.00010945,2]
[380033430,1755490243238,-1000.0,0.00010945,2]
[380033431,1755490243247,-1000.0,0.00010945,2]
[380033432,1755490243257,-1000.0,0.00010945,2]
[380033433,1755490243267,-1000.0,0.00010945,2]
[380033434,1755490243277,-1000.0,0.00010945,2]
[380033435,1755490243287,-1000.0,0.00010945,2]
[380033436,1755490243299,-1000.0,0.00010945,2]
[380033437,1755490243308,-1000.0,0.00010945,2]
[380033438,1755490243317,-1000.0,0.00010945,2]
[380033439,1755490243327,-1000.0,0.00010945,2]
[380033440,1755490243336,-1000.0,0.00010945,2]
[380033441,1755490243346,-1000.0,0.00010945,2]
[380033442,1755490243356,-1000.0,0.00010945,2]
[380033443,1755490243368,-1000.0,0.00010945,2]
[380033444,1755490243378,-1000.0,0.00010945,2]
[380033445,1755490243388,-1000.0,0.00010945,2]
[380033446,1755490243398,-1000.0,0.00010945,2]
[380033447,1755490243408,-1000.0,0.00010945,2]
[380033448,1755490243418,-1000.0,0.00010945,2]
[380033449,1755490243427,-1000.0,0.00010945,2]
[380033450,1755490243436,-1000.0,0.00010945,2]
[380033451,1755490243446,-1000.0,0.00010945,2]
[380033452,1755490243455,-1000.0,0.00010945,2]
[380033453,1755490243465,-1000.0,0.00010945,2]
[380033454,1755490243474,-1000.0,0.00010945,2]
[380033455,1755490243483,-1000.0,0.00010945,2]
[380033456,1755490243493,-1000.0,0.00010945,2]
[380033457,1755490243502,-1000.0,0.00010945,2]
[380033458,1755490243511,-1000.0,0.00010945,2]
[380033459,1755490243520,-1000.0,0.00010945,2]
[380033460,1755490243529,-1000.0,0.00010945,2]
[380033461,1755490243538,-1000.0,0.00010945,2]
[380033462,1755490243547,-1000.0,0.00010945,2]
[380033463,1755490243557,-1000.0,0.00010945,2]
[380033464,1755490243566,-1000.0,0.00010945,2]
[380033466,1755490243575,-1000.0,0.00010945,2]
[380033467,1755490243585,-1000.0,0.00010945,2]
[380033468,1755490243594,-1000.0,0.00010945,2]
[380033469,1755490243603,-1000.0,0.00010945,2]
[380033470,1755490243613,-1000.0,0.00010945,2]
[380033471,1755490243623,-1000.0,0.00010945,2]
[380033473,1755490243663,-1000.0,0.00010945,2]
[380033475,1755490243699,-1000.0,0.00010945,2]
[380033476,1755490243709,-1000.0,0.00010945,2]
[380033477,1755490243718,-1000.0,0.00010945,2]
[380033478,1755490243728,-1000.0,0.00010945,2]
[380033479,1755490243737,-1000.0,0.00010945,2]
[380033480,1755490243747,-1000.0,0.00010945,2]
[380033481,1755490243756,-1000.0,0.00010945,2]
[380033482,1755490243766,-1000.0,0.00010945,2]
[380033483,1755490243776,-1000.0,0.00010945,2]
[380033484,1755490243785,-1000.0,0.00010945,2]
[380033485,1755490243795,-1000.0,0.00010945,2]
[380033486,1755490243804,-1000.0,0.00010945,2]
[380033487,1755490243813,-1000.0,0.00010945,2]
[380033488,1755490243823,-1000.0,0.00010945,2]
[380033489,1755490243832,-1000.0,0.00010945,2]
[380033490,1755490243841,-1000.0,0.00010945,2]
[380033491,1755490243850,-1000.0,0.00010945,2]
[380033492,1755490243859,-1000.0,0.00010945,2]
[380033493,1755490243868,-1000.0,0.00010945,2]
[380033494,1755490243877,-1000.0,0.00010945,2]
[380033495,1755490243887,-1000.0,0.00010945,2]
[380033496,1755490243897,-1000.0,0.00010945,2]
[380033497,1755490243907,-1000.0,0.00010945,2]
[380033498,1755490243916,-1000.0,0.00010945,2]
[380033499,1755490243925,-1000.0,0.00010945,2]
[380033500,1755490243934,-1000.0,0.00010945,2]
[380033501,1755490243943,-1000.0,0.00010945,2]
[380033502,1755490243952,-1000.0,0.00010945,2]
[380033503,1755490243961,-1000.0,0.00010945,2]
[380033504,1755490243970,-1000.0,0.00010945,2]
[380033505,1755490243980,-1000.0,0.00010945,2]
[380033506,1755490243990,-1000.0,0.00010945,2]
[380033507,1755490244002,-1000.0,0.00010945,2]
[380033508,1755490244013,-1000.0,0.00010945,2]
[380033509,1755490244023,-1000.0,0.00010945,2]
[380033510,1755490244032,-1000.0,0.00010945,2]
[380033511,1755490244042,-1000.0,0.00010945,2]
[380033512,1755490244051,-1000.0,0.00010945,2]
[380033513,1755490244064,-1000.0,0.00010945,2]
[380033514,1755490244074,-1000.0,0.00010945,2]
[380033515,1755490244083,-1000.0,0.00010945,2]
[380033516,1755490244092,-1000.0,0.00010945,2]
[380033517,1755490244101,-1000.0,0.00010945,2]
[380033518,1755490244110,-1000.0,0.00010945,2]
[380033519,1755490244119,-1000.0,0.00010945,2]
[380033520,1755490244128,-1000.0,0.00010945,2]
[380033521,1755490244137,-1000.0,0.00010945,2]
[380033522,1755490244146,-500.0,0.00010959,2]
[380033523,1755490244155,-2000.0,0.00010959,2]
[380033524,1755490244164,-2000.0,0.00010959,2]
[380033525,1755490244173,-2000.0,0.00010959,2]
[380033526,1755490244182,-2000.0,0.00010959,2]
[380033527,1755490244191,-2000.0,0.00010959,2]
[380033528,1755490244200,-500.0,0.00010959,2]
[380033529,1755490244209,-200.0,0.00010959,2]
[380033530,1755490244223,-200.0,0.00010959,2]
[380033531,1755490244232,-200.0,0.00010959,2]
[380033532,1755490244241,-200.0,0.00010959,2]
[380033533,1755490244251,-200.0,0.00010959,2]
[380033534,1755490244261,-200.0,0.00010959,2]
[380033535,1755490244271,-343.0,0.00010959,2]
[380033536,1755490244280,-348.4992759,0.00010959,2]
[380033537,1755490244289,-348.4992759,0.00010959,2]
[380033538,1755490244300,-4925.83,0.00010959,2]
[380033539,1755490244309,-150.0,0.00010959,2]
[380033540,1755490244319,-150.72577644,0.00010973,2]
[380033541,1755490244329,-501.63134813,0.00010973,2]
[380033542,1755490244340,-500.0,0.00010973,2]
[380033543,1755490244351,-500.0,0.00010973,2]
[380033544,1755490244361,-500.0,0.00010973,2]
[380033545,1755490244372,-500.0,0.00010973,2]
[380033546,1755490244382,-500.0,0.00010973,2]
[380033547,1755490244391,-500.0,0.00010973,2]
[380033548,1755490244400,-501.3536025,0.00010973,2]
[380033549,1755490244410,-629.80551833,0.00010973,2]
[380033550,1755490244419,-500.0,0.00010973,2]
[380033551,1755490244427,-500.0,0.00010973,2]
[380033552,1755490244437,-500.0,0.00010973,2]
[380033553,1755490244447,-500.0,0.00010973,2]
[380033554,1755490244457,-500.0,0.00010973,2]
[380033555,1755490244466,-500.0,0.00010973,2]
[380033556,1755490244476,-518.11592461,0.00010973,2]
[380033557,1755490244486,-500.0,0.00010973,2]
[380033558,1755490244496,-495.57974681,0.00010973,2]
[380033559,1755490244505,-172.63172576,0.00010973,2]
[380033560,1755490244515,-500.0,0.00010973,2]
[380033561,1755490244524,-500.0,0.00010973,2]
[380033562,1755490244535,-500.0,0.00010973,2]
[380033563,1755490244547,-500.0,0.00010973,2]
[380033564,1755490244558,-501.35103141,0.00010973,2]
[380033565,1755490244568,-500.0,0.00010973,2]
[380033566,1755490244577,-489.73005226,0.00010973,2]
[380033567,1755490244587,-500.69974188,0.00010973,2]
[380033568,1755490244596,-500.0,0.00010973,2]
[380033569,1755490244605,-500.0,0.00010973,2]
[380033570,1755490244615,-527.74833519,0.00010973,2]
[380033571,1755490244624,-500.0,0.00010973,2]
[380033572,1755490244633,-500.0,0.00010973,2]
[380033573,1755490244643,-500.0,0.00010973,2]
[380033574,1755490244654,-500.0,0.00010973,2]
[380033575,1755490244663,-500.0,0.00010973,2]
[380033576,1755490244673,-500.0,0.00010973,2]
[380033577,1755490244682,-500.0,0.00010973,2]
[380033578,1755490244691,-151.31924293,0.00010989,2]
[380033579,1755490244700,-500.0,0.00010989,2]
[380033580,1755490244710,-2671.19095307,0.0001099,2]
[380033581,1755490244719,-1006.97904764,0.0001099,2]
[380033582,1755490244728,-1006.97904764,0.0001099,2]
[380033583,1755490244738,-4431.0,0.00010999,2]
[380033584,1755490244747,-1000.0,0.00010999,2]
[380033585,1755490244757,-1000.0,0.00010999,2]
[380033586,1755490244768,-2000.0,0.00010999,2]
[380033587,1755490244777,-2000.0,0.00010999,2]
[380033588,1755490244786,-2000.0,0.00010999,2]
[380033589,1755490244796,-2000.0,0.00010999,2]
[380033590,1755490244805,-150.0,0.00010999,2]
[380033591,1755490244814,-1000.0,0.00010999,2]
[380033592,1755490244823,-7830.25,0.00010999,2]
[380033593,1755490244833,-7544.32,0.00010999,2]
[380033594,1755490244843,-150.0,0.00010999,2]
[380033595,1755490244852,-150.0,0.00010999,2]
[380033596,1755490244862,-150.0,0.00010999,2]
[380033597,1755490244871,-150.0,0.00010999,2]
[380033598,1755490244880,-150.0,0.00010999,2]
[380033599,1755490244889,-8011079.6398568,0.00011,2]
[380033600,1755490244898,-448330.91,0.00011,2]
[380033601,1755490244907,-21000.93,0.00011,2]
[380033602,1755490244917,-1000.0,0.00011,2]
[380033603,1755490244926,-1000.0,0.00011,2]
[380033604,1755490244935,-1000.0,0.00011,2]
[380033605,1755490244944,-1000.0,0.00011,2]
[380033606,1755490244954,-1000.0,0.00011,2]
[380033607,1755490244963,-1000.0,0.00011,2]
[380033608,1755490244973,-1000.0,0.00011,2]
[380033609,1755490244982,-1000.0,0.00011,2]
[380033610,1755490244991,-1000.0,0.00011,2]
[380033611,1755490245000,-1000.0,0.00011,2]
[380033612,1755490245010,-1000.0,0.00011,2]
[380033613,1755490245020,-1000.0,0.00011,2]
[380033614,1755490245029,-1000.0,0.00011,2]
[380033615,1755490245038,-1000.0,0.00011,2]
[380033616,1755490245047,-1000.0,0.00011,2]
[380033617,1755490245057,-1000.0,0.00011,2]
[380033618,1755490245066,-1000.0,0.00011,2]
[380033619,1755490245076,-1000.0,0.00011,2]
[380033620,1755490245085,-1000.0,0.00011,2]
[380033621,1755490245095,-1000.0,0.00011,2]
[380033622,1755490245104,-1000.0,0.00011,2]
[380033623,1755490245113,-1000.0,0.00011,2]
[380033624,1755490245122,-1000.0,0.00011,2]
[380033625,1755490245131,-1000.0,0.00011,2]
[380033626,1755490245141,-1000.0,0.00011,2]
[380033627,1755490245150,-1000.0,0.00011,2]
[380033628,1755490245159,-1000.0,0.00011,2]
[380033629,1755490245168,-1000.0,0.00011,2]
[380033630,1755490245177,-435.41908921,0.00011,2]
[380033631,1755490245186,-435716.73615089,0.00011,2]
[380033632,1755490245195,-151.0,0.00011,2]
[380033633,1755490245205,-289.29330142,0.00011,2]
[380033634,1755490245218,-14459.179008,0.00011006,2]
[380033635,1755490245227,-6453.0,0.00011008,2]
[380033636,1755490245236,-1613.0,0.00011008,2]
[380033637,1755490245245,-500.0,0.00011014,2]
[380033638,1755490245255,-161.99,0.00011032,2]
[380033639,1755490245263,-2000.0,0.00011053,2]
[380033640,1755490245273,-6237.35834,0.0001106,2]
[380033641,1755490245282,-150.0,0.0001108,2]
[380033642,1755490245292,-150.0,0.00011088,2]
[380033643,1755490245303,-827.95432809,0.00011088,2]
[380033645,1755490245313,-1055.23590834,0.00011088,2]
[380033646,1755490245324,-1509.79906886,0.00011088,2]
[380033647,1755490245335,-1737.08064912,0.00011088,2]
[380033648,1755490245346,-1282.5174886,0.00011088,2]
[380033649,1755490245356,-2646.20697016,0.00011089,2]
[380033650,1755490245366,-1964.36222938,0.00011089,2]
[380033651,1755490245377,-2191.64380964,0.00011089,2]
[380033652,1755490245386,-2418.9253899,0.00011089,2]
[380033653,1755490245397,-150.0,0.00011098,2]
[380033654,1755490245406,-60719.86756828,0.00011099,2]
[380033655,1755490245415,-60719.86756827,0.00011099,2]
[380033656,1755490245425,-60719.86756827,0.00011099,2]
[380033658,1755490245435,-60719.86756827,0.00011099,2]
[380033660,1755490245444,-60719.86756827,0.00011099,2]
[380033662,1755490245454,-60719.86756827,0.00011099,2]
[380033664,1755490245465,-60719.86756827,0.00011099,2]
[380033665,1755490245474,-60719.86756827,0.00011099,2]
[380033666,1755490245486,-60719.86756827,0.00011099,2]
[380033667,1755490245496,-60719.86756827,0.00011099,2]
[380033668,1755490245506,-25532.76996587,0.00011099,2]
[380033669,1755490245515,-25532.76996584,0.00011099,2]
[380033670,1755490245525,-25532.76996584,0.00011099,2]
[380033671,1755490245535,-25532.76996584,0.00011099,2]
[380033672,1755490245545,-25532.76996584,0.00011099,2]
[380033673,1755490245554,-25532.76996584,0.00011099,2]
[380033674,1755490245563,-25532.76996584,0.00011099,2]
[380033675,1755490245573,-25532.76996584,0.00011099,2]
[380033676,1755490245582,-25532.76996584,0.00011099,2]
[380033677,1755490245591,-214.91943697,0.00011103,2]
[380033678,1755490245601,-592.89,0.0001112,2]
[380033679,1755490245610,-492.76,0.0001114,2]
[380033680,1755490245619,-160.0,0.00011148,2]
[380033681,1755490245629,-311.1,0.00011148,2]
[380033682,1755490245638,-3111.0,0.00011148,2]
[380033683,1755490245650,-257.91778498,0.00011148,2]
[380033684,1755490245659,-4828.7370433,0.00011148,2]
[380033685,1755490245668,-500.0,0.00011151,2]
[380033686,1755490245678,-500.0,0.00011151,2]
[380033687,1755490245687,-251.71510553,0.00011151,2]
[380033688,1755490245697,-150.0,0.00011151,2]
[380033689,1755490245706,-500.0,0.00011151,2]
[380033690,1755490245715,-500.0,0.00011151,2]
[380033691,1755490245725,-500.0,0.00011151,2]
[380033692,1755490245734,-500.0,0.00011151,2]
[380033693,1755490245744,-284.18670159,0.00011151,2]
[380033694,1755490245753,-500.0,0.00011151,2]
[380033695,1755490245762,-500.0,0.00011151,2]
[380033696,1755490245772,-392.5585184,0.00011151,2]
[380033697,1755490245781,-500.0,0.00011151,2]
[380033698,1755490245791,-204.64044887,0.00011151,2]
[380033699,1755490245800,-214.33516346,0.00011151,2]
[380033700,1755490245809,-500.0,0.00011151,2]
[380033701,1755490245819,-500.0,0.00011151,2]
[380033702,1755490245829,-404.64789077,0.00011151,2]
[380033703,1755490245839,-500.0,0.00011151,2]
[380033704,1755490245849,-500.0,0.00011151,2]
[380033705,1755490245859,-617.0,0.00011151,2]
[380033706,1755490245869,-500.0,0.00011151,2]
[380033707,1755490245878,-491.0,0.00011151,2]
[380033708,1755490245888,-3948.0,0.00011151,2]
[380033709,1755490245897,-500.0,0.00011151,2]
[380033710,1755490245906,-1854.0,0.00011151,2]
[380033711,1755490245915,-500.0,0.00011151,2]
[380033712,1755490245924,-500.0,0.00011151,2]
[380033713,1755490245934,-858.0,0.00011151,2]
[380033714,1755490245943,-1145.0,0.00011151,2]
[380033715,1755490245952,-1085.0,0.00011232,2]
[380033716,1755490245963,-736.0,0.00011264,2]
[380033717,1755490245974,-211.0,0.00011273,2]
[380033718,1755490245984,-6237.35834,0.0001131,2]
[380033719,1755490245993,-158.92752019,0.00011316,2]
[380033720,1755490246002,-1000.0,0.0001135,2]
[380033721,1755490246012,-151.0,0.00011423,2]
[380033722,1755490246021,-500.0,0.00011425,2]
[380033723,1755490246032,-500.0,0.00011425,2]
[380033724,1755490246048,-152.27324428,0.00011425,2]
[380033725,1755490246059,-500.0,0.00011425,2]
[380033726,1755490246069,-500.0,0.00011425,2]
[380033727,1755490246078,-571.36324721,0.00011425,2]
[380033728,1755490246087,-500.0,0.00011425,2]
[380033729,1755490246096,-500.0,0.00011425,2]
[380033730,1755490246105,-500.0,0.00011425,2]
[380033731,1755490246114,-500.0,0.00011425,2]
[380033732,1755490246123,-500.0,0.00011425,2]
[380033733,1755490246132,-500.0,0.00011425,2]
[380033734,1755490246141,-617.0,0.00011425,2]
[380033735,1755490246150,-500.0,0.00011425,2]
[380033736,1755490246160,-491.0,0.00011425,2]
[380033737,1755490246172,-3948.0,0.00011425,2]
[380033738,1755490246181,-360.11500008,0.00011425,2]
[380033739,1755490246190,-1854.0,0.00011425,2]
[380033740,1755490246199,-500.0,0.00011425,2]
[380033741,1755490246208,-500.0,0.00011425,2]
[380033742,1755490246222,-858.0,0.00011425,2]
[380033743,1755490246232,-1145.0,0.00011425,2]
[380033744,1755490246242,-200.0,0.00011437,2]
[380033745,1755490246253,-801.27745456,0.00011458,2]
[380033746,1755490246265,-214.91943697,0.00011485,2]
[380033747,1755490246275,-2751.0,0.00011507,2]
[380033748,1755490246284,-1000.0,0.00011521,2]
[380033749,1755490246296,-1000.0,0.00011521,2]
[380033750,1755490246598,-1000.0,0.00011521,2]
[380033751,1755490246609,-1000.0,0.00011521,2]
[380033752,1755490246619,-1000.67120204,0.00011521,2]
[380033753,1755490246628,-1000.0,0.00011521,2]
[380033754,1755490246638,-1000.0,0.00011521,2]
[380033755,1755490246648,-1000.0,0.00011521,2]
[380033756,1755490246657,-1000.0,0.00011521,2]
[380033757,1755490246666,-1000.0,0.00011521,2]
[380033758,1755490246676,-1000.0,0.00011521,2]
[380033759,1755490246686,-500.0,0.00011521,2]
[380033760,1755490246696,-580.93814385,0.00011521,2]
[380033761,1755490246707,-1000.0,0.00011521,2]
[380033762,1755490246717,-500.80732442,0.00011521,2]
[380033763,1755490246726,-1000.0,0.00011521,2]
[380033764,1755490246736,-1000.0,0.00011521,2]
[380033765,1755490246745,-1000.0,0.00011521,2]
[380033766,1755490246754,-932.52438624,0.00011521,2]
[380033767,1755490246764,-1000.0,0.00011521,2]
[380033768,1755490246774,-500.0,0.00011521,2]
[380033769,1755490246783,-1000.0,0.00011521,2]
[380033770,1755490246793,-1000.0,0.00011521,2]
[380033771,1755490246802,-600.30022113,0.00011521,2]
[380033772,1755490246812,-1000.0,0.00011521,2]
[380033773,1755490246821,-4923.41751996,0.00011526,2]
[380033774,1755490246831,-7119.2224204,0.0001155,2]
[380033775,1755490246841,-6237.35834,0.0001155,2]
[380033776,1755490246851,-2029.0,0.00011606,2]
[380033777,1755490246860,-991.88,0.00011606,2]
[380033778,1755490246870,-157.387,0.00011606,2]
[380033779,1755490246879,-1255.476,0.00011606,2]
[380033780,1755490246888,-3371.0,0.00011606,2]
[380033781,1755490246898,-574.962,0.00011606,2]
[380033782,1755490246907,-600.789,0.00011606,2]
[380033783,1755490246917,-1323.375,0.00011606,2]
[380033784,1755490246928,-1656.0,0.00011607,2]
[380033785,1755490246939,-303.03,0.00011607,2]
[380033786,1755490246949,-894.807,0.00011607,2]
[380033787,1755490246959,-1173.036,0.00011607,2]
[380033788,1755490246968,-2235.0,0.00011607,2]
[380033789,1755490246977,-4151.0,0.00011607,2]
[380033790,1755490246986,-717.0,0.00011607,2]
[380033791,1755490246996,-6090.0,0.00011607,2]
[380033792,1755490247005,-271.9,0.00011618,2]
[380033793,1755490247014,-804.80617388,0.00011689,4]
[380033794,1755490247024,-212.54237001,0.00011699,2]
[380033795,1755490247033,-500.0,0.00011699,2]
[380033796,1755490247043,-279.59873659,0.00011699,2]
[380033797,1755490247052,-500.0,0.00011699,2]
[380033798,1755490247061,-500.0,0.00011699,2]
[380033799,1755490247070,-500.0,0.00011699,2]
[380033800,1755490247080,-620.08162908,0.00011699,2]
[380033801,1755490247089,-500.0,0.00011699,2]
[380033802,1755490247099,-500.0,0.00011699,2]
[380033803,1755490247108,-500.0,0.00011699,2]
[380033804,1755490247118,-617.0,0.00011699,2]
[380033805,1755490247128,-500.0,0.00011699,2]
[380033806,1755490247139,-491.0,0.00011699,2]
[380033807,1755490247149,-3948.0,0.00011699,2]
[380033808,1755490247160,-1854.0,0.00011699,2]
[380033809,1755490247170,-500.0,0.00011699,2]
[380033810,1755490247179,-563.17614164,0.00011699,2]
[380033811,1755490247189,-858.0,0.00011699,2]
[380033812,1755490247198,-1145.0,0.00011699,2]
[380033813,1755490247207,-150.0,0.00011729,2]
[380033814,1755490247220,-1700.0,0.0001173,2]
[380033815,1755490247229,-1000.0,0.0001173,2]
[380033816,1755490247239,-158.92752019,0.00011731,2]
[380033817,1755490247248,-1085.0,0.00011794,2]
[380033818,1755490247258,-555.46486384,0.00011794,2]
[380033819,1755490247268,-6237.35833,0.0001181,2]
[380033820,1755490247277,-214.91943697,0.00011868,2]
[380033821,1755490247287,-272.75759655,0.0001188,2]
[380033822,1755490247296,-282.99008663,0.00011892,2]
[380033823,1755490247306,-255.0,0.00011892,2]
[380033824,1755490247315,-255.0,0.00011892,2]
[380033825,1755490247324,-150.31020214,0.00011892,2]
[380033826,1755490247334,-150.0,0.00011913,2]
[380033827,1755490247343,-151.0,0.00011971,2]
[380033828,1755490247355,-500.0,0.00011973,2]
[380033829,1755490247365,-500.0,0.00011973,2]
[380033830,1755490247375,-500.0,0.00011973,2]
[380033831,1755490247385,-500.0,0.00011973,2]
[380033832,1755490247395,-500.0,0.00011973,2]
[380033833,1755490247405,-500.0,0.00011973,2]
[380033834,1755490247415,-500.0,0.00011973,2]
[380033835,1755490247425,-617.0,0.00011973,2]
[380033836,1755490247434,-500.0,0.00011973,2]
[380033837,1755490247444,-491.0,0.00011973,2]
[380033838,1755490247454,-3948.0,0.00011973,2]
[380033839,1755490247463,-1854.0,0.00011973,2]